Cogmind - Beta 14 @@@ ROGUE MODE // 2024.08.23 @ 20:35:36 Player: DZKane Result: Self-destructed Performance ------------- Evolutions (4) 2000 Regions Visited (8) 1600 Robots Destroyed (69) 345 Value Destroyed (1910) 1910 Prototype IDs (20) 400 Alien Tech Used (0) 0 Bonus (1932) 1932 TOTAL SCORE: 8187 Bonus ------- High Alert Combat Kills 48 Follower Combat Kills 1380 Registered with UFD 300 Met Imprinter 300 Friendly Fire -96 Cogmind --------- Core Integrity 507/850 Matter 300/300 Energy 231/300 System Corruption 16% Temperature Cool (-150) Movement Core (1000) Ox19 Location -6/Zion Parts ------- > --- POWER (2) -------- Angular Momentum Engine > --- PROPULSION (4) --- (None) > --- UTILITY (6) ------ Improved Cryofiber Web High-capacity Storage Unit Precision Matter Filter A0-MCA's Component Scanner > --- WEAPON (3) ------- (None) > --- INVENTORY (20) --- Energy Well (350) High-capacity Matter Pod (200) Deep Structural Scanner Advanced Sensor Array Advanced Signal Interpreter Experimental Terrain Scanner Surveybot 17 Chip 0b10 Decoder Chip [Scout] Launcher Loader Improved Transmission Jammer Authchip [R/Combat] Authchip [R/Combat] Authchip [R/Combat] Mapping Drone Bay (1/3) Hacking Drone Bay (1/1) Phasing AFG Rocket Array Long-range Missile Launcher Peak State ------------ > --- POWER ------------ Cold Fusion Reactor Micro Fission Core > --- PROPULSION ------- Medium Treads Spiked Medium Treads Armored Wheel Armored Wheel > --- UTILITY ---------- High-capacity Storage Unit Enhanced Scrap Shield Remote Shield A0-MCA's Component Scanner Mapping Drone Bay > --- WEAPON ----------- Gatling Laser Gatling Laser Phasing Sabre > --- INVENTORY -------- Scrap Suit Improved Cryofiber Web Energy Well High-capacity Matter Pod Deep Structural Scanner Advanced Sensor Array Advanced Signal Interpreter Experimental Terrain Scanner Surveybot 17 Chip Precision Matter Filter Improved Particle Charger Launcher Loader Improved Transmission Jammer Improved Powered Armor Improved Powered Armor Thermal Shield High-powered Tractor Beam Long-range Missile Launcher [Rating: 82] Favorites ----------- Power Cold Fusion Reactor Engine Improved Ion Engine Power Core Micro Fission Core Reactor Cold Fusion Reactor Propulsion Armored Wheel Treads Improved Treads Wheel Armored Wheel Utility High-capacity Storage Unit Device Mapping Drone Bay Storage High-capacity Storage Unit Processor A0-MCA's Component Scanner Protection Enhanced Scrap Shield Weapon Gatling Laser Energy Gun Gatling Laser Ballistic Gun Heavy Assault Rifle Ballistic Cannon Battle Cannon Launcher Rocket Array Special Weapon CPS Tube Impact Weapon Makeshift Hammer Slashing Weapon Phasing Sabre Build | -11 -10 -10 -9 -9 -6 -6 -6 -6 ------- Run | Yrd Mat Sub Rec Scr Fac Low Low Zio Slots Evolved 8 | . . . . . 8 . . . Power 1 | . . . . . 1 . . . Propulsion 2 | . . . . . 2 . . . Utility 4 | . . . . . 4 . . . Weapon 1 | . . . . . 1 . . . Parts Attached 79 | 6 11 4 6 12 23 3 6 8 Power 11 | 1 . 1 1 1 4 1 . 2 Engine 7 | 1 . 1 1 1 1 . . 2 Core 2 | . . . . . 1 1 . . Reactor 2 | . . . . . 2 . . . Propulsion 16 | 2 3 . 1 3 4 . 2 1 Treads 11 | 2 3 . . . 4 . 2 . Leg . | . . . . . . . . . Wheel 5 | . . . 1 3 . . . 1 Hover . | . . . . . . . . . Flight . | . . . . . . . . . Utility 28 | 1 4 1 2 3 9 1 4 3 Device 14 | . . 1 2 . 6 . 3 2 Storage 6 | 1 3 . . 2 . . . . Processor 2 | . 1 . . . 1 . . . Hackware . | . . . . . . . . . Protection 6 | . . . . 1 2 1 1 1 Artifact . | . . . . . . . . . Weapon 24 | 2 4 2 2 5 6 1 . 2 Energy Gun 8 | 1 3 . 1 . 3 . . . Energy Cannon . | . . . . . . . . . Ballistic Gun 5 | 1 . . 1 3 . . . . Ballistic Cannon 5 | . . 1 . 2 2 . . . Launcher 3 | . 1 1 . . . . . 1 Special Weapon 1 | . . . . . 1 . . . Impact Weapon 1 | . . . . . . . . 1 Slashing Weapon 1 | . . . . . . 1 . . Piercing Weapon . | . . . . . . . . . Special Melee Weapon . | . . . . . . . . . Unidentified Prototypes . | . . . . . . . . . Parts Lost 15 | . . 1 1 . . . 1 12 Power 3 | . . 1 1 . . . . 1 Propulsion 4 | . . . . . . . . 4 Utility 3 | . . . . . . . 1 2 Weapon 5 | . . . . . . . . 5 Highest Loss Streak 7 | . . 1 1 . . . 1 7 To Critical Strikes . | . . . . . . . . . Average Slot Usage (%) 92 | . 99 100 95 83 97 93 92 90 Engine 8 | . 14 14 10 13 5 . . 4 Core 1 | . . . . . 1 6 6 1 Reactor 2 | . . . . . 4 6 6 6 Treads 15 | . 28 28 21 9 12 13 13 13 Wheel 10 | . . . 6 16 13 13 13 11 Device 10 | . . 12 14 9 19 13 12 12 Storage 10 | . 14 14 14 13 6 6 6 6 Processor 5 | . 13 1 . . 5 6 6 6 Protection 2 | . . . . . 5 5 6 5 Energy Gun 11 | . 27 14 9 . 12 13 13 12 Ballistic Gun 5 | . . . 4 19 . . . . Ballistic Cannon 2 | . . 8 14 1 4 1 . . Slashing Weapon 1 | . . . . . . 4 6 4 Peak Build Rating 82 | 6 12 13 15 20 75 81 82 81 Average Rating 41 | 4 11 12 13 14 64 79 80 78 On Entrance 33 | . 6 12 13 15 20 75 81 80 Naked Turns 182 | . . . . 182 . . . . Heaviest Build 100 | 14 51 52 54 59 91 96 91 100 Greatest Support 58 | 40 46 46 46 24 58 58 58 48 Greatest Overweight (x) 8 | . 1 1 4 4 3 1 3 8 Average Overweight (x) 2 | . . 1 2 2 2 1 2 3 Largest Inventory Capacity 20 | 8 20 20 20 20 20 20 20 20 Average Capacity 18 | 7 13 20 20 19 20 20 20 20 Most Carried 20 | 2 13 19 20 20 20 20 20 20 Average Carried 17 | 1 9 16 19 17 18 19 19 19 Final Capacity 20 | 8 20 20 20 20 20 20 20 20 Final Carried 20 | 2 13 19 20 20 20 20 19 19 Class Distribution -------------------- 53% | Mutant 31% | Derelict-Mutant 5% | Derelict-Skirmisher 5% | Tank 3% | Derelict-Tank Dominant Class ---------------- Mutant | -10/Materials Mutant | -10/Subcaves Mutant | -9/Recycling Mutant | -9/Scraptown Derelict-Skirmisher | -6/Factory Derelict-Mutant | -6/Lower Caves Derelict-Mutant | -6/Lower Caves Derelict-Mutant | -6/Zion Resources | -11 -10 -10 -9 -9 -6 -6 -6 -6 ----------- Run | Yrd Mat Sub Rec Scr Fac Low Low Zio Matter Collected 1858 | 260 270 72 179 290 586 30 60 111 Remotely . | . . . . . . . . . Salvage Created 2154 | . 575 112 192 . 422 . 320 533 Parts 102 | . 38 10 8 . 20 . 8 18 Haulers Intercepted 5 | . 2 . . . 2 . 1 . Recyclers Shooed 3 | . . . . . 3 . . . Parts Field Recycled . | . . . . . . . . . Retrieved Matter . | . . . . . . . . . Parts Self-Destructed 53 | . . 8 . . . 21 24 . Prevented 3 | . . . . . . 3 . . Kills | -11 -10 -10 -9 -9 -6 -6 -6 -6 ------- Run | Yrd Mat Sub Rec Scr Fac Low Low Zio Combat Hostiles Destroyed 38 | . 12 5 3 . 6 . 4 8 Melee 2 | . . . . . . . 1 1 Guns 19 | . 12 1 . . 1 . 2 3 Cannons 5 | . . . 3 . 2 . . . AOE 11 | . . 4 . . 3 . . 4 Classes Destroyed 19 | . 7 3 . . 2 . 1 6 Worker 2 | . . . . . 2 . . . Builder 2 | . 1 . . . 1 . . . Hauler 5 | . 2 . . . 2 . 1 . Recycler 3 | . 1 . 1 . 1 . . . Operator 2 | . 2 . . . . . . . Turret 1 | . . 1 . . . . . . Watcher 3 | . 3 . . . . . . . Swarmer 10 | . 6 3 . . . . 1 . Grunt 13 | . 6 . . . 5 . 2 . Duelist 1 | . . . . . 1 . . . Sentry 4 | . . 1 3 . . . . . Subdweller 1 | . . 1 . . . . . . Zionite 11 | . . . . . . . . 11 Tinkerer 1 | . . . . . . . . 1 Surgeon 1 | . . . . . . . . 1 Savage 1 | . . . . . . . . 1 Butcher 2 | . . . . . . . 1 1 Wizard 1 | . . . . . . . . 1 Fireman 1 | . . . . . . . . 1 Mutant 5 | . . . . . . . 1 4 Best Kill Streak 8 | . 3 4 2 . 8 . 2 5 Combat Bots Only 6 | . 3 4 1 . 6 . 2 4 Max Kills in Single Turn 3 | . 2 2 1 . 3 . 1 3 Gunslinging 1 | . 1 . . . . . . . Exploded 3 | . . 2 . . 3 . . 2 Melee 1 | . . . . . . . 1 1 Uniques/NPCs Destroyed . | . . . . . . . . . Combat | -11 -10 -10 -9 -9 -6 -6 -6 -6 -------- Run | Yrd Mat Sub Rec Scr Fac Low Low Zio Hostile Shots Fired 445 | . 43 89 6 . 125 12 37 133 Missed 158 | . 12 44 2 . 48 4 3 45 Damage Taken 4079 | . 310 314 56 . 875 111 413 2000 Core 436 | . 34 59 . . 99 . 35 209 Absorbed by Shields 259 | . . . . . 148 34 77 . Ignored by Resistances 5 | . . . . . . . . 5 Regen/Repaired (Parts) 197 | . . . . . 59 . . 138 Core Remaining (%) 81 | 100 . . . 62 . . . . Volleys Fired 159 | . 45 15 6 . 48 2 10 33 Largest 3 | . 2 2 2 . 3 2 2 2 Hottest 208 | . 130 130 104 . 208 160 160 160 Shots Fired 260 | . 89 22 12 . 64 4 20 49 Gun 189 | . 88 8 6 . 19 4 20 44 Cannon 55 | . . 4 6 . 45 . . . Launcher 16 | . 1 10 . . . . . 5 Special . | . . . . . . . . . Kinetic 57 | . . 4 8 . 45 . . . Thermal 187 | . 88 8 4 . 19 4 20 44 Explosive 16 | . 1 10 . . . . . 5 Electromagnetic . | . . . . . . . . . Robot Hit Streak 14 | . 11 5 12 . 13 2 13 14 Robot Miss Streak 6 | . 3 1 . . 6 4 2 5 Penetration Max 1 | . . . . . 1 . . . Secondary Targets 3 | . 2 . . . . . . 1 Max Gunslinging Chain 1 | . 1 . . . . . . 1 Shots Hit Robots 188 | . 51 7 12 . 33 4 27 54 Core Hits 159 | . 27 12 6 . 32 2 18 62 Critical Kills . | . . . . . . . . . Critical Parts Destroyed . | . . . . . . . . . Critical Strikes 10 | . 4 1 1 . 3 . 1 . Burn 5 | . 4 1 . . . . . . Blast 4 | . . . 1 . 3 . . . Sever 1 | . . . . . . . 1 . Melee Attacks 34 | . . . . . . . 15 19 Impact 14 | . . . . . . . . 14 Slashing 20 | . . . . . . . 15 5 Piercing . | . . . . . . . . . Sneak Attacks 1 | . . . . . . . 1 . Combat Hostiles . | . . . . . . . . . Follow-up Attacks . | . . . . . . . . . Damage Inflicted 6583 | . 839 485 239 . 1829 55 881 2255 Guns 2760 | . 807 105 101 . 332 55 506 854 Cannons 745 | . . . 138 . 607 . . . Explosions 2371 | . 32 380 . . 876 . . 1083 Melee 693 | . . . . . . . 375 318 Ramming 14 | . . . . . 14 . . . Kinetic 781 | . . . 174 . 607 . . . Thermal 2894 | . 807 105 65 . 502 55 506 854 Explosive 2201 | . 32 380 . . 706 . . 1083 Electromagnetic . | . . . . . . . . . Impact 219 | . . . . . . . . 219 Slashing 474 | . . . . . . . 375 99 Piercing . | . . . . . . . . . Highest Corruption 16 | . . . . . . . 1 16 Average Corruption 4 | . . . . . . . 1 8 Corruption Purged . | . . . . . . . . . Corruption Blocked . | . . . . . . . . . Effects 18 | . . . . . . . 3 15 Message Errors 6 | . . . . . . . 2 4 Matter Fused 2 | . . . . . . . . 2 Heat Flow Errors 3 | . . . . . . . 1 2 Energy Discharges 3 | . . . . . . . . 3 Parts Rejected 1 | . . . . . . . . 1 Misfires 1 | . . . . . . . . 1 Weapon Failures 2 | . . . . . . . . 2 Overload Shots . | . . . . . . . . . Overflow Damage 260 | . . 9 . . 80 . 19 152 Projectiles . | . . . . . . . . . Explosions 151 | . . 9 . . 80 . . 62 Melee 109 | . . . . . . . 19 90 Knockbacks 6 | . . . . . 3 . . 3 Impact 3 | . . . . . . . . 3 Kinetic 3 | . . . . . 3 . . . Secondary . | . . . . . . . . . Self-Inflicted Damage 475 | . 24 . . . 40 . . 411 Shots 18 | . 1 . . . 1 . . 16 Rammed 1 | . . . . . 1 . . . Targets Rammed 1 | . . . . . 1 . . . Kicked . | . . . . . . . . . Crushed . | . . . . . . . . . Highest Temperature 512 | . 512 18 33 . 378 72 208 310 Average Temperature 106 | . 121 9 14 . 94 40 75 133 Received Heat Transfer 1643 | . 60 252 18 . 326 . 257 730 Effects 9 | . 5 . . . 1 . . 3 Shutdowns 1 | . 1 . . . . . . . Energy Bleed 1 | . . . . . 1 . . . Interference 5 | . 2 . . . . . . 3 Damage (minor) 1 | . 1 . . . . . . . Damage (major) 1 | . 1 . . . . . . . Siege Activations . | . . . . . . . . . Robots Corrupted 1 | . . . . . . . . 1 Combat Hostiles . | . . . . . . . . . Parts Fried . | . . . . . . . . . Impact Corruptions 2 | . . . . . . . . 2 Robots Melted 3 | . 1 . . . . . 2 . Combat Hostiles 1 | . . . . . . . 1 . Parts Melted 13 | . 6 . . . . . 4 3 Heat Transferred 7011 | . 2220 333 148 . 850 125 1135 2200 Parts Sabotaged . | . . . . . . . . . Parts Stolen . | . . . . . . . . . Parts Stripped . | . . . . . . . . . Power Chain Reactions . | . . . . . . . . . Alert | -11 -10 -10 -9 -9 -6 -6 -6 -6 ------- Run | Yrd Mat Sub Rec Scr Fac Low Low Zio Peak Influence 806 | . 172 . 120 . 806 . . . Initial 9 | . . . 9 . . . . . Average 106 | . 50 . 38 . 240 . . . Maximum Alert Level 3 | . . . . . 3 . . . Low Security (%) 88 | 100 100 . 100 . 64 . . . Level 1 . | . . . . . . . . . Level 2 7 | . . . . . 23 . . . Level 3 3 | . . . . . 10 . . . Level 4 . | . . . . . . . . . Level 5 . | . . . . . . . . . High Security . | . . . . . . . . . Max Security . | . . . . . . . . . Squads Dispatched 10 | . 3 . . . 7 . . . Investigation 4 | . 1 . . . 3 . . . Extermination 1 | . . . . . 1 . . . Reinforcement 5 | . 2 . . . 3 . . . Assault . | . . . . . . . . . Garrison . | . . . . . . . . . Intercept . | . . . . . . . . . Searches Triggered . | . . . . . . . . . Construction Impeded . | . . . . . . . . . Haulers Reinforced 2 | . . . . . 2 . . . Active Scanning Responses . | . . . . . . . . . Cargo Convoy Interrupts . | . . . . . . . . . Stealth | -11 -10 -10 -9 -9 -6 -6 -6 -6 --------- Run | Yrd Mat Sub Rec Scr Fac Low Low Zio Distress Signals 2 | . 1 . . . 1 . . . Communications Jammed 2 | . . . . . 2 . . . Distress Signals 2 | . . . . . 2 . . . Times Spotted 106 | . 19 11 3 . 26 4 19 24 Peak Tracking Total 12 | . 3 5 1 . 7 2 5 12 Tactical Retreats 5 | . 1 3 . . . . . 1 Traps | -11 -10 -10 -9 -9 -6 -6 -6 -6 ------- Run | Yrd Mat Sub Rec Scr Fac Low Low Zio Traps Triggered 7 | . 1 . . . 6 . . . Indirectly . | . . . . . . . . . Trap Hack Attempts . | . . . . . . . . . Triggered . | . . . . . . . . . Disarmed . | . . . . . . . . . Reprogrammed . | . . . . . . . . . Reused . | . . . . . . . . . Traps Extracted . | . . . . . . . . . Installed . | . . . . . . . . . Triggered 1 | . . . . . . 1 . . Most Traps Carried 1 | . . 1 1 1 . . . . Machines | -11 -10 -10 -9 -9 -6 -6 -6 -6 ---------- Run | Yrd Mat Sub Rec Scr Fac Low Low Zio Machines Disabled 14 | . 1 3 . . 9 . 1 . Max in Single Turn 8 | . 1 1 . . 8 . 1 . Garrison Access 2 | . . . . . 2 . . . Machines Repaired . | . . . . . . . . . Machines Dismantled . | . . . . . . . . . Machines Sabotaged . | . . . . . . . . . Overloaded Fab Kills . | . . . . . . . . . Hacking | -11 -10 -10 -9 -9 -6 -6 -6 -6 --------- Run | Yrd Mat Sub Rec Scr Fac Low Low Zio Machines Accessed 34 | . 5 . 11 8 8 1 1 . Terminals 12 | . 5 . 6 . . . 1 . Fabricators 1 | . . . . . 1 . . . Repair Stations 1 | . . . . . 1 . . . Recycling Units 7 | . . . 5 . 2 . . . Scanalyzers 2 | . . . . . 2 . . . Garrison Access 2 | . . . . . 2 . . . Total Hacks 118 | . 13 . 24 60 18 1 2 . Successful 89 | . 4 . 13 60 9 1 2 . Failed 28 | . 9 . 10 . 9 . . . Catastrophic 3 | . 1 . 1 . 1 . . . Database Lockouts 1 | . . . 1 . . . . . Manual 29 | . 5 . 19 . 5 . . . Terminals 34 | . 13 . 19 . . . 2 . Fabricators 2 | . . . . . 2 . . . Repair Stations 6 | . . . . . 6 . . . Recycling Units 9 | . . . 5 . 4 . . . Scanalyzers 3 | . . . . . 3 . . . Garrison Access 3 | . . . . . 3 . . . Terminal Hacks 73 | . 3 . 7 60 . 1 2 . Record 62 | . . . . 60 . . 2 . Part Schematic 1 | . . . 1 . . . . . Robot Analysis 6 | . 2 . 4 . . . . . Prototype ID Bank 2 | . 1 . 1 . . . . . Open Door 1 | . . . . . . 1 . . Hauler Manifests 1 | . . . 1 . . . . . Fabricator Hacks 1 | . . . . . 1 . . . Network Status 1 | . . . . . 1 . . . Repair Station Hacks 4 | . . . . . 4 . . . Scan Component 2 | . . . . . 2 . . . Repair 2 | . . . . . 2 . . . Recycling Unit Hacks . | . . . . . . . . . Scanalyzer 1 | . . . . . 1 . . . Insert Component 1 | . . . . . 1 . . . Garrison Access Hacks 2 | . . . . . 2 . . . Seal Access 2 | . . . . . 2 . . . Unauthorized Hacks 8 | . 1 . 6 . 1 . . . Terminals 2 | . 1 . 1 . . . . . Botnet 2 | . 1 . 1 . . . . . Fabricators . | . . . . . . . . . Repair Stations 1 | . . . . . 1 . . . Recycling Units 5 | . . . 5 . . . . . Tunnel 5 | . . . 5 . . . . . Fedlink 1 | . . . . . 1 . . . Scanalyzers . | . . . . . . . . . Garrison Access . | . . . . . . . . . Data Cores Recovered . | . . . . . . . . . Used . | . . . . . . . . . Hacking Detections 16 | . 5 . 5 . 5 . 1 . Full Trace Events 2 | . 1 . . . 1 . . . Feedback Events . | . . . . . . . . . Feedback Blocked . | . . . . . . . . . Robot Schematics Acquired 3 | . . . . . . . . 3 Robots Built . | . . . . . . . . . Authchips . | . . . . . . . . . Time . | . . . . . . . . . Total Robot Build Rating . | . . . . . . . . . Part Schematics Acquired 15 | . . . 1 . . . . 14 Parts Built . | . . . . . . . . . Authchips . | . . . . . . . . . Time . | . . . . . . . . . Total Part Build Rating . | . . . . . . . . . Parts Repaired 2 | . . . . . 2 . . . Time 88 | . . . . . 88 . . . Parts Recycled . | . . . . . . . . . Recycled Matter . | . . . . . . . . . Retrieved Matter . | . . . . . . . . . Retrieved Components . | . . . . . . . . . Parts Scanalyzed 1 | . . . . . 1 . . . Part Schematics Acquired . | . . . . . . . . . Parts Damaged 1 | . . . . . 1 . . . Bothacking | -11 -10 -10 -9 -9 -6 -6 -6 -6 ------------ Run | Yrd Mat Sub Rec Scr Fac Low Low Zio Used RIF Installer . | . . . . . . . . . Robots Hacked . | . . . . . . . . . Non-combat . | . . . . . . . . . Combat . | . . . . . . . . . Robot Hacks Applied . | . . . . . . . . . Relay Couplers Released . | . . . . . . . . . Fabnet Peak Effective % . | . . . . . . . . . Robots Rewired 3 | . . . . . . . 3 . Allies Hacked . | . . . . . . . . . Hacks Repelled . | . . . . . . . . . Allies | -11 -10 -10 -9 -9 -6 -6 -6 -6 -------- Run | Yrd Mat Sub Rec Scr Fac Low Low Zio Total Allies 8 | . . . . 1 . . 3 4 Largest Group 8 | . . . . 1 1 1 4 8 Highest-Rated Group 245 | . . . . 68 68 62 147 245 Highest-Rated Ally 68 | . . . . 68 68 62 62 54 Total Orders 17 | . . . . . 3 6 8 . EXPLORE 12 | . . . . . 1 5 6 . RETURN 5 | . . . . . 2 1 2 . Ally Attacks 63 | . . . . . 33 2 16 12 Total Damage 4370 | . . . . . 2596 170 1177 427 Kills 49 | . . . . . 28 2 16 3 Allies Corrupted 2 | . . . . . . . . 2 Allies Melted . | . . . . . . . . . Intel | -11 -10 -10 -9 -9 -6 -6 -6 -6 ------- Run | Yrd Mat Sub Rec Scr Fac Low Low Zio Robot Analysis Total 6 | . 2 . 4 . . . . . Derelict Logs Recovered 5 | . . . . 3 . 1 1 . Drone Launches 14 | . . . . . 3 5 6 . Drone Recoveries 12 | . . . . . 3 4 5 . Exploration | -11 -10 -10 -9 -9 -6 -6 -6 -6 ------------- Run | Yrd Mat Sub Rec Scr Fac Low Low Zio Turns Passed 13537 | 62 2255 457 1387 3218 1694 1337 1453 1674 Spaces Moved 6893 | 34 618 165 721 2453 825 382 668 1027 Core 351 | 2 . . . 349 . . . . Treads 1673 | 32 618 165 310 . 77 382 87 2 Legs . | . . . . . . . . . Wheels 4869 | . . . 411 2104 748 . 581 1025 Hover . | . . . . . . . . . Flight . | . . . . . . . . . Fastest Speed 50 | 50 160 240 135 50 120 240 135 135 Average Speed 153 | 153 189 240 183 124 143 240 148 142 Slowest Speed 255 | 160 240 240 240 150 240 240 240 255 Overloaded Moves . | . . . . . . . . . Propulsion Burnouts . | . . . . . . . . . Robots Hopped . | . . . . . . . . . Cave-ins Triggered . | . . . . . . . . . Exploration Rate (%) 66 | 3 92 9 98 93 30 93 97 85 Regions Visited 8 Branch Regions 6 Pre-discovered Areas 12 | . . . 5 7 . . . . Known Exits Taken 1 | . . . . . 1 . . . Unknown Exits Taken 7 | 1 1 1 1 1 . 1 1 . Scrap Searched 14 | . . . . 8 . . 3 3 Spaces Dug 16 | . 7 . . . 7 . 2 . Terrain Destroyed 90 | . 7 21 . . 53 . 2 7 Melee 2 | . . . . . . . 2 . Projectile 16 | . . . . . 16 . . . AOE 72 | . 7 21 . . 37 . . 7 Terrain Rammed . | . . . . . . . . . Walls Destroyed . | . . . . . . . . . Machines Disabled . | . . . . . . . . . Actions | -11 -10 -10 -9 -9 -6 -6 -6 -6 --------- Run | Yrd Mat Sub Rec Scr Fac Low Low Zio Total 9579 | 41 1608 204 773 2634 1282 801 1083 1153 Wait 2128 | . 923 13 36 45 335 404 323 49 Move 6885 | 33 617 164 720 2452 824 381 667 1027 Hop . | . . . . . . . . . Pick Up 120 | 2 8 6 1 66 19 3 5 10 Fast Attach 41 | 6 4 2 3 9 10 2 1 4 Attach 13 | . . 1 . 2 6 . 1 3 Detach 1 | . . . . 1 . . . . Swap 25 | . 7 1 3 1 7 1 4 1 Drop 104 | . 4 2 4 52 21 7 7 7 Fire 159 | . 45 15 6 . 48 2 10 33 Melee 34 | . . . . . . . 15 19 Ram 1 | . . . . . 1 . . . Kick . | . . . . . . . . . Crush . | . . . . . . . . . Escape Stasis 11 | . . . . . 11 . . . Rewire 56 | . . . . 6 . . 50 . Trap . | . . . . . . . . . Miscellaneous 1 | . . . . . . 1 . . Route ------- -11/Scrapyard -10/Materials (discovered 5 exits: [*Mat x3] / [*Min] / [*Sub]) -10/Subcaves (discovered 3 exits: [*Mat x2] / *Rec) -9/Recycling (discovered 2 exits: [*Fac] / *Scr) -9/Scraptown (discovered 2 exits: *Fac x2) -6/Factory (discovered 5 exits: *Fac x3 / *Low x2) -6/Lower Caves -6/Lower Caves (discovered 2 exits: *Fac / [*Zio]) -6/Zion History --------- Turn | Location | Event 32 | -11/Scrapyard | Discovered new exit (range 16) 63 | -11/Scrapyard | Entered Materials 168 | -10/Materials | Discovered new exit (range 16) 318 | -10/Materials | Build established: Mutant 412 | -10/Materials | Discovered new exit (range 12) 925 | -10/Materials | Discovered new exit (range 9) 1846 | -10/Materials | Discovered new exit (range 8) 2104 | -10/Materials | Discovered new exit (range 7) 2318 | -10/Materials | Entered Subcaves 2468 | -10/Subcaves | Shifting Twisted Machinery released Piercing Trap 2476 | -10/Subcaves | Discovered new exit (range 10) 2479 | -10/Subcaves | Shifting Twisted Machinery released Battle Cannon 2684 | -10/Subcaves | Discovered new exit (range 8) 2687 | -10/Subcaves | Discovered new exit (range 16) 2693 | -10/Subcaves | Ambushed by Subdweller buried in earth 2775 | -10/Subcaves | Entered Recycling 3385 | -9/Recycling | Discovered new exit (range 8) 4128 | -9/Recycling | Scanned before Scraplab entrance 4149 | -9/Recycling | Entered Scraplab 4161 | -9/Recycling | Discovered new exit (range 2) 4162 | -9/Recycling | Entered Scraptown 4280 | -9/Scraptown | Heard Great Nut preacher, LISTEN AND RECITE! 4514 | -9/Scraptown | Scanned Subdweller tech in exchange for log data 4518 | -9/Scraptown | Learned 8 Research zone layouts 4520 | -9/Scraptown | Learned location of Warlord (-4) 4545 | -9/Scraptown | Discovered new exit (range 3) 4695 | -9/Scraptown | Visited Assassins FH 4730 | -9/Scraptown | Visited CPS Storage 4974 | -9/Scraptown | Visited Comm Corps 5042 | -9/Scraptown | Visited The Evicted 5102 | -9/Scraptown | Visited Shadow of the Wyrm 5121 | -9/Scraptown | Visited Cyclists 5157 | -9/Scraptown | Visited UFD Registry 5157 | -9/Scraptown | Registered with UFD as "Gausstalker" 5187 | -9/Scraptown | Visited Cave Peace 5247 | -9/Scraptown | Entered Cyclist Reading Room 5361 | -9/Scraptown | Visited Chapter 10 5416 | -9/Scraptown | Visited Derelict Rescue Squad 5436 | -9/Scraptown | Found DRS Beacon 5476 | -9/Scraptown | Visited Scrapoid Research Area 5555 | -9/Scraptown | Delivered Scrap Shield to a Scientist 5702 | -9/Scraptown | Visited DA-N13 Charitable Foundation 5819 | -9/Scraptown | Visited Supply Room 5862 | -9/Scraptown | Visited Botcube Research 5868 | -9/Scraptown | Found Lrg. Botcube 5908 | -9/Scraptown | Visited Infowarlord's Domain 5944 | -9/Scraptown | Visited Cartography Club 6013 | -9/Scraptown | Visited A0-MCA Data Center 6022 | -9/Scraptown | Given a B+ rating by A0-MCA 6026 | -9/Scraptown | Found A0-MCA's Component Scanner 6054 | -9/Scraptown | Visited Abandonware Association 6094 | -9/Scraptown | Learned abandonware demo "SHUTEYE.EXE" 6094 | -9/Scraptown | Learned abandonware demo "TRNCOAT.EXE" 6271 | -9/Scraptown | Released all parts (7) 6328 | -9/Scraptown | Learned location of Recycling (-9) 6328 | -9/Scraptown | Learned 8 Materials zone layouts 6328 | -9/Scraptown | Learned 12 Materials zone layouts 6328 | -9/Scraptown | Learned 16 Factory zone layouts 6328 | -9/Scraptown | Learned 4 Mines zone layouts 6328 | -9/Scraptown | Learned 4 Storage zone layouts 6328 | -9/Scraptown | Learned 16 Upper Caves zone layouts 6328 | -9/Scraptown | Learned Materials emergency access door positions 6328 | -9/Scraptown | Learned location of 3 exits from Upper Caves 6328 | -9/Scraptown | Learned location of 2 exits from Proximity Caves 6346 | -9/Scraptown | Found Deep Structural Scanner 6363 | -9/Scraptown | Found Surveybot 17 Chip 6440 | -9/Scraptown | Found Exp. Terrain Scanner 6557 | -9/Scraptown | Found DCF Scrap (30 items) 6969 | -9/Scraptown | Lrg. Botcube activated 7007 | -9/Scraptown | Lrg. Botcube completed mutation into treaded form, armed with 4 guns. 7350 | -9/Scraptown | Found Scrap Suit 7366 | -9/Scraptown | Discovered new exit (range 5) 7380 | -9/Scraptown | Entered Factory 7380 | -6/Factory | Accompanied by 1 ally 7380 | -6/Factory | Evolved 8 slots: Power x1, Propulsion x2, Utility x4, Weapon x1 7381 | -6/Factory | Identified exit to Lower Caves 7382 | -6/Factory | Identified exit to Factory 7758 | -6/Factory | Build established: Derelict-Skirmisher 7954 | -6/Factory | Repaired Hvy. Missile Launcher 7999 | -6/Factory | Repaired Gatling Laser 8374 | -6/Factory | Found Launcher Loader 8614 | -6/Factory | Build established: Derelict-Tank 9074 | -6/Factory | Entered Lower Caves 9074 | -6/Lower Caves | Accompanied by 1 ally 9075 | -6/Lower Caves | Build established: Tank 9076 | -6/Lower Caves | UFD Scientist delivered a prototype 9080 | -6/Lower Caves | Found Enh. Scrap Shield 9216 | -6/Lower Caves | Activated DRS Beacon 9763 | -6/Lower Caves | Build established: Derelict-Mutant 10174 | -6/Lower Caves | Learned Factory garrison access intel 10213 | -6/Lower Caves | Discovered new exit (range 18) 10411 | -6/Lower Caves | Entered another Lower Caves area 10411 | -6/Lower Caves | Accompanied by 1 ally 10427 | -6/Lower Caves | Discovered exit to Factory (range 26) 10516 | -6/Lower Caves | Learned Factory stockpile data 10735 | -6/Lower Caves | Discovered new exit (range 67) 11115 | -6/Lower Caves | Found Imp. Powered Armor 11128 | -6/Lower Caves | Found Imp. Powered Armor 11181 | -6/Lower Caves | Attracted the attention of an 0b10 base 11245 | -6/Lower Caves | Learned Factory security intel 11436 | -6/Lower Caves | Attacked by a delusional Derelict stockpiling Unaware 11864 | -6/Lower Caves | Entered Zion 11864 | -6/Zion | Accompanied by 4 allies 11924 | -6/Zion | System corruption cleaned by Quarantine Array 12135 | -6/Zion | Gained Derelict followers 12201 | -6/Zion | Given the Hacking Drone Bay 12202 | -6/Zion | Found Hacking Drone Bay 12402 | -6/Zion | Found Phasing AFG 13061 | -6/Zion | Found Rocket Array 13116 | -6/Zion | Turned away by Imprinter 13138 | -6/Zion | Attempted to imprint without authorization 13138 | -6/Zion | Attacked by Zionites 13191 | -6/Zion | Lost 3 allies 13204 | -6/Zion | Lost 3 parts (1n1u1w) 13365 | -6/Zion | System corruption reached 10% 13426 | -6/Zion | Found Rocket Array 13538 | -6/Zion | Self-destructed Last Messages --------------- 13526_ Critical hit (Burn: +80). P5-O9H(z) bursts out of the Twisted Machinery. 13531_ P5-O9H(z) pulls a Mak. Sword out of the Twisted Machinery. 13533_ Imp. Powered Armor severed. 13534_ Cold Fusion Reactor destroyed. 13534_ System corrupted by crushing effect (+4). 13535_ System corrupted: Energy discharge (-84). 13535_ Mak. Hammer destroyed. 13535_ Spk. Medium Treads destroyed. 13535_ Destroyed Spk. Medium Treads. 13535_ Rocket Array destroyed. 13535_ Destroyed Rocket Array. 13535_ P5-O9H(z) destroyed. 13535_ Z6-W97(z) destroyed. [Achievement: Monster] 13535_ Arm. Treads destroyed. 13535_ Destroyed Arm. Treads. 13535_ A6-6J0(M) destroyed. 0Y-KZG(z) bursts out of the Twisted Machinery. Map ----- +----------------------------------------------------+ | ????????????????# """#" """ """ | | ???????????????## """"" """ " """" | | ???????????????" "" """" "" """"""" | | ???????????????" "" """" """ """"#" | | ???????????????# """"" " """" """" | | ????????????"""""""""##" """ | | ????????????"##"#"#""#"" """""""""" | | ??????????????########"" """""" """" """"""" | | ?????????????????????#"" """#"" """ """"""" | | ?????????????????????#""" """ """""""""""" | | ????????????????????#"#"" "" | | ????????????????????####"""" | | ??????????????????????#"""" | | ?????????????????????##""" """ "#"#""#" | | ?????????????????#####""" """ """""""" | | ?????????????????#!!#""" #"####"" | | ????????????????##!!" "" ""###### | | ????????????????# "" """"#??? | | ????????????????##!!" " "###??? | | ?????????????????# !##" "" ""#???? | | ?????????????????##### ## """ ""##??? | | ???????????????????#"#""## """ """"#??? | | ?????????????########"""" """ " """##??? | | ?????????????# ]##"""" = """"""" """#???? | | ????????????## " " z """"""" ""##???? | | ????????????#] "" @% "" ""#????? | | ????????????## " "" " #"##???? | | ?????????????# ]# "" " #""#???? | | ?????????????##### = """"" #"##???? | | ?????????????????####c = """"" """##??? | | ?????????????####???## """" ""##?? | | ????????????##""###### """ ""##? | | ???????????##"#""""""" """#? | | ##########?#""""""""""# "" ""## | | """""""" #?#" """"" % """ ""# | | """""""" ###" """""" "#" | | #""" " "" """" "" """# | | """" ##"" %""""""" " "#"#" "" ""## | | """"" """"""""" """"#"" #" "#? | | """"" % ""####"" """"""###" #" ""# | | """"" ""#?#"" """#"####" """ ""# | | """" ###" "####"" """"##?#"" """"""## | | ##"" ""##""" """#"####"" """"###? | | """""""" ##" " #"" """"""""##"" #""##### | | """""""" #"" "" #""" """ """""#"" """"""#" | | ##########""" ""###"" """"#"" """""""" | | ?????#####""#% ""#?#"" ""##" #"""" | | ????##"""#### ###?#" "" ""##" | | ????#" #??#"" """ ""##" | | ????#" #??#"" "" "###" | +----------------------------------------------------+ Best States ------------- Heat Dissipation 37 Energy Generation 30 Energy Capacity 455 Matter Stores 300 Matter Capacity 300 Sight Range 16 Robot Scan Range 16 Terrain Scan Density 10 Jamming Range 14 Base Temperature (-) 150 Armor Coverage 800 Resistance: TH 20 Resistance: EM 15 Evasion (%) 50 Targeting Accuracy 5 Recoil Reduction 2 Matter Filtering 50 Authchip Count 3 Item Schematics ----------------- Transmission Jammer | -9/Recycling | Hacked Arm. Medium Treads | -6/Zion | Archive Adv. Melee Analysis Suite | -6/Zion | Archive Myomer Leg | -6/Zion | Archive Fission Core | -6/Zion | Archive Imp. Remote Datajack | -6/Zion | Archive Angular Momentum Engine | -6/Zion | Archive Adv. Hacking Suite | -6/Zion | Archive Force Field | -6/Zion | Archive Tesla Rifle | -6/Zion | Archive Lrn. Missile Launcher | -6/Zion | Archive Recoil Nullifier | -6/Zion | Archive Imp. Reaction Control System | -6/Zion | Archive Imp. Thermal Generator | -6/Zion | Archive Adv. Cryofiber Web | -6/Zion | Archive Robot Schematics ------------------ Y-54 Guardian | -6/Zion | Archive A-02 Transporter | -6/Zion | Archive H-88 Terminator | -6/Zion | Archive Fabricated ------------ Nothing Alien Tech Used ----------------- None Achievements -------------- Monster Party Time Challenges ------------ None Game ------ Seed HardcellCompactMatter Manual? 0 Play Time 02:06:00 Cumulative 85.0 hours Start 2024.08.23 @ 12:04:13 End 2024.08.23 @ 20:35:36 Sessions 7 Manual Loads 0 Difficulty Rogue Special Mode None Game No. 67 Rogue 67 Adventurer 0 Explorer 0 Win Type - Total 1 Types 1/0/0/0/0/0/0/0/0 Lore% 44 Gallery% 53 Achievement% 44 Wizard Run 0 Options --------- Layout 1 ASCII 0 Keyboard 0 Movement Numpad Keybinds 0 Fullscreen 1 Font 24/Smallcaps Map View 50x35 Zoom Use 0% Tactical HUD 1 Map Filters NONE Filters NONE Steam 1 RUN: beb7279a-1f12-4878-abf9-ff0ce80708ae